bitfinex/quotes_SOLUSD_20260223
["timestamp","ask_amount","ask_price","bid_price","bid_amount"]
[1771871599177,1.53538134,78.809,78.773,1.5094837]
[1771871599591,1.53538134,78.809,78.781,1.5094837]
[1771871599788,12.68745717,78.818,78.79,16.11856841]
[1771871600001,12.68745717,78.818,78.79,1.5094837]
[1771871600002,14.22283851,78.818,78.79,1.5094837]
[1771871600203,1.5357408,78.817,78.781,1.56994282]
[1771871600499,1.5357408,78.799,78.77,27.30423485]
[1771871600701,1.5357408,78.799,78.771,1.56994282]
[1771871600889,44.40610011,78.818,78.781,1.56994282]
[1771871600890,1.5357408,78.809,78.781,1.56994282]
[1771871601201,1.5357408,78.809,78.782,12.6932548]
[1771871601799,1.5357408,78.807,78.781,1.56994282]
[1771871601993,1.5357408,78.807,78.782,12.6932548]
[1771871602212,1.5357408,78.807,78.772,1.56994282]
[1771871602384,1.5357408,78.799,78.772,1.56994282]
[1771871602579,14.22480789,78.808,78.78,14.60908471]
[1771871602779,14.22480789,78.808,78.772,1.56994282]
[1771871602780,1.5357408,78.807,78.772,1.56994282]
[1771871603382,1.5357408,78.805,78.773,14.26464785]
[1771871604282,1.5357408,78.805,78.774,1.56994282]
[1771871605292,1.5357408,78.805,78.78,14.60908471]
[1771871605899,1.5357408,78.789,78.756,1.56994282]
[1771871606184,1.5357408,78.789,78.75,46.35493592]
[1771871606185,1.5357408,78.789,78.761,1.56994282]
[1771871606384,1.5357408,78.789,78.714,50.81686273]
[1771871606385,1.5357408,78.779,78.742,1.56994282]
[1771871606604,1.5357408,78.779,78.697,102.2]
[1771871606605,1.5357408,78.769,78.732,1.56994282]
[1771871607009,1.5357408,78.769,78.74,14.60908471]
[1771871607502,1.5357408,78.759,78.732,1.56994282]
[1771871607810,14.60908471,78.76,78.732,1.56994282]
[1771871607811,14.23286363,78.758,78.732,1.56994282]
[1771871608498,12.69502735,78.771,78.741,1.56994282]
[1771871608700,1.5357408,78.779,78.741,1.56994282]
[1771871609206,1.5357408,78.779,78.751,1.56994282]
[1771871610386,12.69389931,78.778,78.751,1.56994282]
[1771871610585,12.69389931,78.778,78.752,12.6980902]
[1771871610797,14.22964011,78.778,78.751,1.56994282]
[1771871611007,14.22964011,78.778,78.752,12.6980902]
[1771871611807,14.22964011,78.778,78.751,1.56994282]
[1771871612707,14.42964011,78.778,78.751,1.56994282]
[1771871613011,12.69422159,78.776,78.751,1.56994282]
[1771871613188,14.22996239,78.776,78.751,1.56994282]
[1771871613596,0.2,78.768,78.751,1.56994282]
[1771871614103,0.2,78.768,78.753,1.56994282]
[1771871614602,0.2,78.768,78.721,54.50600162]
[1771871614603,0.2,78.768,78.746,1.56994282]
[1771871614796,0.2,78.768,78.742,1.56994282]
[1771871615186,0.2,78.778,78.751,1.56994282]
[1771871615402,0.2,78.778,78.76,16.17902753]
[1771871615604,0.2,78.778,78.76,1.56994282]
[1771871617889,0.2,78.778,78.762,1.56994282]
[1771871618090,1.7357408,78.778,78.761,12.69663919]
[1771871618297,1.7357408,78.778,78.751,12.69825145]
[1771871619514,0.2,78.768,78.751,12.69825145]
[1771871619691,0.2,78.768,78.751,44.44388007]
[1771871621613,0.2,78.768,78.751,44.24388007]
[1771871622110,0.2,78.768,78.73,1.56994282]
[1771871622111,1.5357408,78.759,78.73,1.56994282]
[1771871622310,1.5357408,78.759,78.73,14.60908471]
[1771871622497,1.5357408,78.759,78.731,1.56994282]
[1771871623611,1.5357408,78.757,78.732,12.70131585]
[1771871624617,1.5357408,78.757,78.733,1.56994282]
[1771871624810,1.5357408,78.766,78.74,16.17902753]
[1771871625415,31.93504925,78.778,78.761,1.56994282]
[1771871625416,0.2,78.778,78.761,1.56994282]
[1771871625633,14.22863539,78.785,78.761,1.56994282]
[1771871625800,14.22863539,78.785,78.725,50.80975725]
[1771871625801,1.5357408,78.779,78.745,1.56994282]
[1771871625997,1.5357408,78.789,78.751,1.56994282]
[1771871626193,1.5357408,78.789,78.76,16.17902753]
[1771871626726,1.5357408,78.789,78.76,1.56994282]
[1771871627919,1.61047598,78.787,78.761,0.2]
[1771871628623,1.61047598,78.787,78.771,0.2]
[1771871629200,1.61047598,78.785,78.761,0.2]
[1771871630420,12.69261036,78.786,78.761,0.2]
[1771871630421,1.61047598,78.779,78.761,0.2]
[1771871631318,12.69389931,78.778,78.761,0.2]
[1771871631711,14.30437529,78.778,78.761,0.2]
[1771871631917,1.61047598,78.777,78.761,0.2]
[1771871633709,12.69422159,78.776,78.761,0.2]
[1771871634703,0.28432314,78.775,78.751,0.2]
[1771871634902,44.42977556,78.776,78.751,0.2]
[1771871634903,14.30405664,78.78,78.753,1.59848362]
[1771871635101,1.61047598,78.779,78.753,1.59848362]
[1771871635707,12.69406044,78.777,78.754,12.69776773]
[1771871635908,12.69406044,78.777,78.753,1.59848362]
[1771871635909,1.61047598,78.776,78.753,1.59848362]
[1771871636523,50.76071593,78.802,78.753,1.59848362]
[1771871636524,1.61047598,78.785,78.76,14.6153494]
[1771871637508,12.69277146,78.785,78.76,14.6153494]
[1771871637820,1.61047598,78.779,78.75,14.6153494]
[1771871638128,1.61047598,78.769,78.747,1.59848362]
[1771871638311,1.61047598,78.769,78.748,1.59848362]
[1771871640027,1.61047598,78.769,78.749,12.69857395]
[1771871640220,1.61047598,78.769,78.75,14.6153494]
[1771871640661,67.14028271,78.807,78.749,12.69857395]
[1771871640662,1.61047598,78.794,78.761,1.59848362]
[1771871640923,50.73279428,78.845,78.749,44.44500882]
[1771871640924,1.61047598,78.805,78.78,14.6153494]
[1771871641231,14.6153494,78.81,78.78,14.6153494]
[1771871641232,1.61047598,78.83,78.801,1.59848362]
[1771871641830,31.70731722,78.847,78.79,14.6153494]
[1771871641831,1.61047598,78.819,78.79,14.6153494]
[1771871642011,1.61047598,78.817,78.78,27.30877445]
[1771871642325,1.61047598,78.805,78.772,1.59848362]
[1771871642505,1.61047598,78.801,78.772,1.59848362]
[1771871642704,1.61047598,78.801,78.77,27.31052234]
[1771871642705,1.61047598,78.801,78.774,1.59848362]
[1771871642905,1.61047598,78.811,78.781,1.59848362]
[1771871643333,14.6153494,78.8,78.771,1.59848362]
[1771871643634,14.6153494,78.8,78.77,14.6153494]
[1771871643635,1.61047598,78.799,78.769,12.69526729]
[1771871645133,1.61047598,78.797,78.77,14.6153494]
[1771871645935,1.61047598,78.797,78.771,1.59848362]
[1771871648113,1.61047598,78.795,78.771,1.59848362]
[1771871648624,1.61047598,78.795,78.771,14.29349061]
[1771871649011,63.43264857,78.824,78.771,14.29349061]
[1771871649012,104.1,78.863,78.772,1.59848362]
[1771871649212,104.1,78.863,78.771,12.69500699]
[1771871649213,1.61047598,78.829,78.8,14.6153494]
[1771871649429,1.61047598,78.829,78.801,1.59848362]
[1771871650131,1.61047598,78.827,78.791,1.59848362]
[1771871650924,1.61047598,78.819,78.785,12.69263759]
[1771871651120,1.61047598,78.819,78.79,14.6153494]
[1771871652014,1.61047598,78.819,78.792,1.59848362]
[1771871652417,14.29782638,78.819,78.792,1.59848362]
[1771871652628,1.61047598,78.818,78.792,1.59848362]
[1771871653314,1.61047598,78.818,78.793,1.59848362]
[1771871653734,14.6153494,78.83,78.801,1.59848362]
[1771871653735,1.61047598,78.827,78.801,1.59848362]
[1771871653943,12.68616953,78.826,78.801,1.59848362]
[1771871654243,1.61047598,78.825,78.801,1.59848362]
[1771871654644,171.49383402,78.858,78.802,1.59848362]
[1771871654645,1.61047598,78.832,78.802,1.59848362]
[1771871654824,1.61047598,78.838,78.811,1.59848362]
[1771871655516,14.29455365,78.839,78.811,1.59848362]
[1771871655716,1.61047598,78.838,78.811,1.59848362]
[1771871657234,14.29487543,78.837,78.811,1.59848362]
[1771871657429,12.68439945,78.837,78.813,1.59848362]
[1771871657619,5.44792972,78.85,78.813,1.59848362]
[1771871657819,1.48628335,78.849,78.813,1.59848362]
[1771871658014,1.48628335,78.839,78.813,1.59848362]
[1771871658427,31.70367898,78.856,78.767,5.36086188]
[1771871658428,1.77060649,78.855,78.82,6.97761933]
[1771871658648,1.77060649,78.855,78.812,12.68842308]
[1771871658649,1.48628335,78.849,78.821,1.52968961]
[1771871659429,1.48628335,78.847,78.821,1.52968961]
[1771871659942,1.48628335,78.839,78.808,14.17629354]
[1771871660146,1.48628335,78.839,78.809,1.48732833]
[1771871660438,1.48628335,78.839,78.811,1.48732833]
[1771871660827,1.48628335,78.839,78.831,0.38408256]
[1771871661027,1.48628335,78.839,78.811,1.48732833]
[1771871661835,12.6834888,78.843,78.813,1.48732833]
[1771871662346,14.20790288,78.843,78.813,1.48732833]
[1771871663168,16.11621027,78.83,78.804,1.48732833]
[1771871663448,16.11621027,78.83,78.8,14.59179619]
[1771871663449,1.52441408,78.837,78.809,1.48732833]
[1771871663642,1.52441408,78.837,78.811,1.48732833]
[1771871663847,1.52441408,78.839,78.82,14.59179619]
[1771871664036,12.68339666,78.844,78.82,14.59179619]
[1771871664234,14.20781074,78.844,78.82,1.48732833]
[1771871664648,1.52441408,78.843,78.813,1.48732833]
[1771871666059,1.52441408,78.839,78.814,1.48732833]
[1771871666249,1.52441408,78.839,78.811,1.48732833]
[1771871668550,1.52441408,78.837,78.811,1.48732833]
[1771871669747,1.52441408,78.837,78.811,14.17580665]
[1771871669951,1.52441408,78.837,78.812,1.48732833]
[1771871671555,1.52441408,78.835,78.812,1.48732833]
[1771871674138,14.20929623,78.834,78.812,14.17564477]
[1771871675455,14.20929623,78.834,78.813,1.48732833]
[1771871675645,1.52441408,78.833,78.813,1.48732833]
[1771871676348,1.52441408,78.833,78.815,1.48732833]
[1771871676658,1.52441408,78.839,78.82,14.59179619]
[1771871676864,1.52441408,78.839,78.815,1.48732833]
[1771871677730,63.39487923,78.871,78.814,12.68810109]
[1771871677731,6.6263231,78.882,78.831,1.48732833]
[1771871677936,6.6263231,78.882,78.861,1.48732833]
[1771871678190,1.52441408,78.888,78.861,1.48732833]
[1771871678191,14.20067554,78.888,78.861,1.48732833]
[1771871678456,14.20067554,78.888,78.814,310.85847688]
[1771871678457,1.52441408,78.929,78.881,1.48732833]
[1771871678634,1.52441408,78.929,78.896,1.48732833]
[1771871678840,1.52441408,78.929,78.89,14.59179619]
[1771871679045,1.52441408,78.929,78.891,1.48732833]
[1771871679773,1.52441408,78.929,78.901,1.48732833]
[1771871679945,1.52441408,78.935,78.91,14.59179619]
[1771871680444,50.64652432,78.979,78.91,14.59179619]
[1771871680445,14.59179619,78.96,78.92,14.59179619]
[1771871680759,14.59179619,78.96,78.91,12.67251949]
[1771871680760,1.52441408,78.969,78.931,1.48732833]
[1771871681452,44.31726093,78.976,78.901,1.48732833]
[1771871681453,1.52441408,78.939,78.901,1.48732833]
[1771871682237,1.80873722,78.975,78.901,1.48732833]
[1771871682437,1.52441408,78.949,78.917,12.67154098]
[1771871682638,1.52441408,78.949,78.913,12.67212899]
[1771871683442,1.52441408,78.939,78.905,14.16073385]
[1771871683743,1.52441408,78.939,78.9,27.26592363]
[1771871683956,1.52441408,78.939,78.91,14.59179619]
[1771871684253,1.52441408,78.939,78.9,44.35980551]
[1771871684254,1.52441408,78.957,78.93,14.59179619]
[1771871684459,14.18959792,78.957,78.932,1.48732833]
[1771871684754,1.52441408,78.956,78.932,1.48732833]
[1771871686557,12.66544234,78.955,78.932,1.48732833]
[1771871686764,14.59179619,78.97,78.932,1.48732833]
[1771871686765,1.52441408,78.963,78.932,1.48732833]
[1771871686946,14.59179619,78.97,78.93,14.59179619]
[1771871686947,14.18873362,78.962,78.933,14.15630074]
[1771871687152,1.52441408,78.959,78.933,1.48732833]
[1771871687355,1.52441408,78.959,78.91,31.68139429]
[1771871687356,1.52441408,78.959,78.92,27.26270726]
[1771871687546,1.52441408,78.959,78.92,28.75003559]
[1771871687861,1.52441408,78.959,78.921,1.52197276]
[1771871688241,0.2,78.956,78.93,14.59179619]
[1771871688446,0.2,78.956,78.932,12.66913292]
[1771871688670,107.77766791,79.024,78.94,14.59179619]
[1771871688671,31.65298352,78.982,78.94,14.59179619]
[1771871688965,1.53875785,78.977,78.96,14.59179619]
[1771871689155,1.53875785,78.986,78.96,14.59179619]
[1771871689354,1.53875785,78.986,78.957,1.52197276]
[1771871689652,1.53875785,78.986,78.95,14.59179619]
[1771871689965,1.53875785,78.986,78.96,14.39179619]
[1771871690162,1.53875785,78.979,78.94,14.59179619]
[1771871690354,1.53875785,78.979,78.941,1.52197276]
[1771871690842,1.53875785,78.977,78.942,12.66752805]
[1771871691042,3.69383402,79.014,78.942,12.66752805]
[1771871691043,1.82308099,78.999,78.942,44.33634819]
[1771871691244,1.53875785,78.989,78.953,1.52197276]
[1771871691765,1.53875785,78.989,78.96,14.59179619]
[1771871692869,1.53875785,78.987,78.96,14.59179619]
[1771871693212,1.53875785,78.987,78.962,1.52197276]
[1771871693356,1.53875785,78.987,78.96,14.53482871]
[1771871694560,1.53875785,78.987,78.919,101.36910766]
[1771871694561,14.53482871,78.98,78.95,14.53482871]
[1771871694745,1.53875785,78.979,78.95,14.53482871]
[1771871695152,12.66119664,78.982,78.96,14.53482871]
[1771871695351,1.53875785,78.984,78.96,14.53482871]
[1771871696265,1.53875785,78.984,78.958,1.52197276]
[1771871696566,1.53875785,78.984,78.96,14.53482871]
[1771871696765,1.53875785,78.979,78.95,14.53482871]
[1771871696962,1.53875785,78.979,78.941,1.52197276]
[1771871697170,1.53875785,78.977,78.951,1.52197276]
[1771871698570,14.53482871,78.98,78.951,1.52197276]
[1771871698571,14.2008324,78.976,78.951,1.52197276]
[1771871698774,1.53875785,78.975,78.951,1.52197276]
[1771871699790,1.53875785,78.975,78.912,3.69383402]
[1771871699791,1.53875785,79.013,78.961,1.52197276]
[1771871700070,50.60620566,79.042,78.96,14.53482871]
[1771871700071,1.53875785,79.05,79.001,1.52197276]
[1771871700254,14.53482871,79.04,79.0,14.53482871]
[1771871700452,44.27521473,79.051,78.984,1.52197276]
[1771871700453,1.53875785,79.019,78.984,1.52197276]
[1771871700654,1.53875785,78.999,78.967,1.52197276]
[1771871700851,1.53875785,78.989,78.956,1.52197276]
[1771871701663,1.53875785,78.989,78.957,12.66512152]
[1771871701869,1.53875785,78.988,78.96,14.53482871]
[1771871702078,1.53875785,78.979,78.948,1.52197276]
[1771871702258,1.53875785,78.979,78.943,12.66731633]
[1771871702673,1.53875785,78.969,78.943,12.66731633]
[1771871702872,1.53875785,78.959,78.923,1.52197276]
[1771871703080,16.07358656,78.95,78.921,1.52197276]
[1771871703273,1.53875785,78.95,78.921,1.52197276]
[1771871703671,16.07358656,78.95,78.921,1.52197276]
[1771871703863,1.53875785,78.948,78.921,1.52197276]
[1771871704062,50.64701538,78.979,78.921,1.52197276]
[1771871704063,1.53875785,78.98,78.94,1.52197276]
[1771871704278,1.53875785,78.969,78.933,1.52197276]
[1771871704583,1.53875785,78.969,78.94,14.53482871]
[1771871704957,1.53875785,78.969,78.941,1.52197276]
[1771871706271,12.6633573,78.968,78.942,14.18950081]
[1771871706976,1.53875785,78.967,78.942,1.52197276]
[1771871707157,1.53875785,78.967,78.938,12.66814165]
[1771871707575,1.53875785,78.967,78.934,1.52197276]
[1771871707780,1.53875785,78.967,78.936,1.52197276]
[1771871708875,1.53875785,78.967,78.935,12.66865142]
[1771871708876,1.53875785,78.965,78.94,14.53482871]
[1771871709056,1.53875785,78.965,78.93,14.53482871]
[1771871709258,1.53875785,78.959,78.931,12.66929343]
[1771871709482,1.53875785,78.979,78.932,1.52197276]
[1771871709652,1.53875785,78.969,78.94,14.53482871]
[1771871709853,1.53875785,78.969,78.941,1.52197276]
[1771871710056,1.53875785,78.969,78.932,1.52197276]
[1771871710692,1.53875785,78.969,78.94,14.53482871]
[1771871710885,1.53875785,78.967,78.934,1.52197276]
[1771871713576,1.53875785,78.967,78.935,12.66865142]
[1771871713798,1.53875785,78.975,78.941,1.52197276]
[1771871713981,12.66239521,78.974,78.941,1.52197276]
[1771871714185,1.53875785,78.973,78.941,1.52197276]
[1771871716599,1.53875785,78.979,78.943,1.52197276]
[1771871716902,1.53875785,78.969,78.936,1.52197276]
[1771871717301,12.66191422,78.977,78.91,5.43333524]
[1771871717302,1.53875785,78.949,78.91,5.43333524]
[1771871717601,1.53875785,78.939,78.911,1.52197276]
[1771871718685,1.56759524,78.937,78.911,1.52197276]
[1771871719189,1.56759524,78.969,78.931,1.4914739]
[1771871719393,1.56759524,79.003,78.961,1.4914739]
[1771871719611,1.56759524,79.003,78.97,6.92480914]
[1771871719917,1.56759524,79.003,78.971,1.4914739]
[1771871720087,1.56759524,79.003,78.98,6.94635184]
[1771871721009,1.56759524,79.003,78.98,5.43333524]
[1771871721311,14.2253695,79.003,78.98,14.52936182]
[1771871722482,1.56164457,79.002,78.98,14.52936182]
[1771871723246,12.65806761,79.001,78.98,14.52936182]
[1771871723610,1.56164457,79.0,78.98,14.52936182]
[1771871723814,1.56164457,79.0,78.97,16.04237842]
[1771871724016,1.56164457,79.0,78.971,1.5130166]
[1771871724222,1.56164457,79.0,78.972,1.5130166]
[1771871724694,1.56164457,79.0,78.971,1.5130166]
[1771871725090,44.30547994,78.997,78.96,27.19388474]
[1771871725302,1.56164457,78.996,78.96,1.5130166]
[1771871725609,1.56164457,78.996,78.96,16.04237842]
[1771871725816,1.84596771,78.989,78.953,1.5130166]
[1771871726110,1.56164457,78.989,78.961,1.5130166]
[1771871727522,1.56164457,78.987,78.961,1.5130166]
[1771871727809,1.56164457,78.987,78.955,12.66532721]
[1771871728112,1.56164457,78.994,78.961,1.5130166]
[1771871728311,1.56164457,78.994,78.97,14.52936182]
[1771871728610,1.56164457,78.994,78.961,1.5130166]
[1771871730819,1.56164457,78.992,78.961,1.5130166]
[1771871730988,1.56164457,78.992,78.97,14.52936182]
[1771871732214,1.56164457,78.992,78.971,1.5130166]
[1771871732807,0.28432314,78.999,78.971,1.5130166]
[1771871733002,0.28432314,78.999,78.965,1.5130166]
[1771871733415,0.28432314,78.999,78.97,14.52936182]
[1771871733598,0.28432314,78.999,78.965,1.5130166]
[1771871733796,44.3049191,78.998,78.959,1.5130166]
[1771871734110,44.3049191,78.998,78.938,31.67020658]
[1771871734111,14.52936182,78.99,78.95,14.52936182]
[1771871734297,44.3049191,78.998,78.945,1.5130166]
[1771871734298,14.52936182,78.98,78.945,1.5130166]
[1771871734695,1.56164457,78.977,78.945,1.5130166]
[1771871736002,1.56164457,78.977,78.95,16.04237842]
[1771871737113,45.8789055,78.976,78.95,16.04237842]
[1771871737310,1.56164457,78.975,78.95,16.04237842]
[1771871738519,1.56164457,78.975,78.951,1.5130166]
[1771871738520,12.66239521,78.974,78.951,1.5130166]
[1771871738897,1.56164457,78.973,78.951,1.5130166]
[1771871739102,1.56164457,78.973,78.95,14.52936182]
[1771871739508,1.56164457,78.973,78.943,1.5130166]
[1771871739717,1.56164457,78.969,78.94,14.52936182]
[1771871739903,1.56164457,78.969,78.936,1.5130166]
[1771871740217,1.84596771,78.959,78.929,1.5130166]
[1771871740416,1.84596771,78.959,78.931,1.5130166]
[1771871740615,14.22660568,78.958,78.931,1.5130166]
[1771871741026,45.88900847,78.958,78.931,1.5130166]
[1771871741707,1.56164457,78.957,78.931,1.5130166]
[1771871742403,1.56164457,78.957,78.9,18.22319584]
[1771871742404,1.56164457,78.955,78.924,1.5130166]
[1771871742629,1.56164457,78.955,78.931,1.5130166]
[1771871744645,12.66560275,78.954,78.931,1.5130166]
[1771871744942,14.22724732,78.954,78.931,1.5130166]
[1771871747910,1.42102768,78.953,78.931,1.5130166]
[1771871748108,1.42102768,78.953,78.925,1.42925493]
[1771871748324,1.42102768,78.939,78.911,1.42925493]
[1771871748924,1.42102768,78.939,78.909,1.42925493]
[1771871749403,1.42102768,78.945,78.911,1.42925493]
[1771871749628,1.42102768,78.957,78.921,1.42925493]
[1771871750121,1.42102768,78.949,78.921,1.42925493]
[1771871750314,1.42102768,78.949,78.915,1.42925493]
[1771871750517,1.42102768,78.955,78.921,1.42925493]
[1771871750714,1.42102768,78.949,78.921,1.42925493]
[1771871751813,12.66528192,78.956,78.931,1.42925493]
[1771871752812,1.42102768,78.956,78.931,1.42925493]
[1771871753212,1.42102768,78.949,78.924,1.42925493]
[1771871755910,1.42102768,78.947,78.924,1.42925493]
[1771871757014,14.0879139,78.946,78.924,1.42925493]
[1771871757627,1.42102768,78.945,78.924,1.42925493]
[1771871760231,1.42102768,78.979,78.931,1.42925493]
[1771871760436,1.42102768,78.979,78.941,1.42925493]
[1771871760618,1.42102768,78.977,78.941,1.42925493]
[1771871760814,5.43304987,78.98,78.941,1.42925493]
[1771871760815,1.42102768,78.969,78.941,1.42925493]
[1771871762534,1.42102768,78.98,78.951,1.42925493]
[1771871762910,44.30435828,78.999,78.96,5.43304987]
[1771871763131,1.42102768,78.998,78.971,1.42925493]
[1771871764323,1.42102768,79.008,78.971,1.42925493]
[1771871764543,12.65710633,79.007,78.972,1.42925493]
[1771871764840,521.9,79.103,78.971,12.66281328]
[1771871764841,310.1,79.115,79.0,10.86609974]
[1771871765029,57.08,79.132,78.973,1.42925493]
[1771871765030,1.42102768,79.056,78.975,3.69383402]
[1771871765218,1.42102768,79.056,79.0,5.43304987]
[1771871765417,1.42102768,79.056,79.02,5.43304987]
[1771871765635,1.42102768,79.056,79.021,1.42925493]
[1771871765936,6.85407755,79.05,79.021,1.42925493]
[1771871766235,1.42102768,79.049,79.03,5.43304987]
[1771871766428,1.42102768,79.084,79.043,1.42925493]
[1771871766632,1.42102768,79.113,79.063,1.42925493]
[1771871766817,9.80360874,79.099,79.08,5.43304987]
[1771871767017,1.42102768,79.097,79.06,5.43304987]
[1771871767935,9.80360874,79.099,79.09,5.43304987]
[1771871768135,50.53444748,79.154,79.09,5.43304987]
[1771871768136,1.52931253,79.125,79.09,5.43304987]
[1771871768337,1.52931253,79.109,79.08,5.43304987]
[1771871768522,1.52931253,79.107,79.07,18.08004625]
[1771871768724,5.43304987,79.12,79.08,5.43304987]
[1771871768939,1.52931253,79.138,79.11,5.43304987]
[1771871769140,50.51246011,79.189,79.08,5.43304987]
[1771871769141,1.52931253,79.159,79.12,5.43304987]
[1771871769441,1.52931253,79.159,79.08,5.43304987]
[1771871769442,1.52931253,79.149,79.11,14.47589053]
[1771871769631,1.52931253,79.129,79.09,14.47589053]
[1771871769836,1.52931253,79.119,79.07,44.26455044]
[1771871770139,1.52931253,79.119,79.09,14.47589053]
[1771871770636,1.52931253,79.117,79.091,12.64366362]
[1771871770837,1.52931253,79.117,79.08,14.47589053]
[1771871771237,1.52931253,79.117,79.09,14.47589053]
[1771871772140,1.52931253,79.109,79.052,44.27465465]
[1771871772442,1.52931253,79.109,79.07,14.47589053]
[1771871772640,1.52931253,79.109,79.041,3.69383402]
[1771871772641,1.52931253,79.107,79.08,14.47589053]
[1771871772953,1.52931253,79.115,79.08,14.47589053]
[1771871773536,1.81363567,79.109,79.045,3.69383402]
[1771871773840,1.81363567,79.109,79.07,14.47589053]
[1771871774221,1.81363567,79.109,79.08,14.47589053]
[1771871774634,1.52931253,79.107,79.08,14.47589053]
[1771871775330,1.52931253,79.107,79.07,14.47589053]
[1771871775524,1.52931253,79.107,78.91,76.03582948]
[1771871775525,1.52931253,79.127,79.09,14.47589053]
[1771871775746,1.52931253,79.127,79.065,44.26737494]
[1771871776045,1.52931253,79.127,79.1,14.47589053]
[1771871776434,1.52931253,79.127,79.101,3.78793096]
[1771871776741,12.63807092,79.126,79.101,3.78793096]
[1771871776940,12.63807092,79.126,79.027,50.6149762]
[1771871776941,1.52931253,79.125,79.027,50.6149762]
[1771871777150,1.52931253,79.119,79.08,14.47589053]
[1771871777646,1.52931253,79.109,79.08,14.47589053]
[1771871778239,1.52931253,79.117,79.09,14.47589053]
[1771871778637,1.52931253,79.117,79.08,14.47589053]
[1771871779138,1.52931253,79.115,79.056,44.27241448]
[1771871779448,1.52931253,79.115,79.09,14.47589053]
[1771871779629,14.47589053,79.12,79.09,14.47589053]
[1771871779832,14.16444778,79.145,79.11,14.47589053]
[1771871780140,1.52931253,79.144,79.12,14.47589053]
[1771871780354,1.52931253,79.144,79.08,14.47589053]
[1771871780355,12.62465492,79.211,79.131,0.28432314]
[1771871780547,6.60737219,79.187,79.161,1.39811637]
[1771871780781,6.60391084,79.21,79.181,1.39811637]
[1771871781050,14.47589053,79.22,79.151,1.39811637]
[1771871781349,14.47589053,79.19,79.151,1.39811637]
[1771871781541,0.28432314,79.189,79.151,1.39811637]
[1771871781736,0.14216157,79.189,79.151,1.39811637]
[1771871781943,0.14216157,79.189,79.141,1.39811637]
[1771871781944,0.14216157,79.179,79.141,1.39811637]
[1771871782143,0.14216157,79.199,79.133,1.39811637]
[1771871782350,1.5231508,79.178,79.14,14.47589053]
[1771871782854,1.5231508,79.178,79.141,1.39811637]
[1771871783054,1.5231508,79.178,79.15,14.47589053]
[1771871783361,1.5231508,79.169,79.141,1.39811637]
[1771871783555,1.5231508,79.169,79.141,14.03379168]
[1771871784136,1.5231508,79.169,79.141,1.39811637]
[1771871784541,1.5231508,79.169,79.141,14.03378437]
[1771871784758,50.50457448,79.201,79.141,14.03378437]
[1771871784759,1.5231508,79.179,79.15,14.47589053]
[1771871784942,12.62977089,79.178,79.15,14.47589053]
[1771871785257,12.62977089,79.178,79.142,1.39811637]
[1771871785258,1.5231508,79.177,79.142,1.39811637]
[1771871786050,12.6290654,79.183,79.152,1.39811637]
[1771871787245,1.5231508,79.179,79.15,14.47589053]
[1771871788261,14.15292169,79.178,79.144,1.39811637]
[1771871788460,15.99904133,79.19,79.151,1.39811637]
[1771871788665,167.8,79.216,79.143,12.63535625]
[1771871788666,1.5231508,79.212,79.181,1.39811637]
[1771871788850,1.5231508,79.212,79.19,14.47589053]
[1771871789050,1.5231508,79.221,79.2,14.47589053]
[1771871789363,870.8501134,79.287,79.143,208.48337816]
[1771871789364,1.5231508,79.232,79.21,14.47589053]
[1771871789760,1.5231508,79.232,79.2,14.47589053]
[1771871789968,1.5231508,79.229,79.2,14.47589053]
[1771871790150,1.5231508,79.227,79.2,14.47589053]
[1771871790558,12.62180037,79.228,79.201,1.39811637]
[1771871790868,1.5231508,79.235,79.201,12.6261032]
[1771871791061,1.5231508,79.245,79.22,14.47589053]
[1771871791263,1.5231508,79.248,79.212,1.39811637]
[1771871791460,14.47589053,79.23,79.201,12.6261032]
[1771871791770,14.47589053,79.23,79.166,50.52642819]
[1771871791771,1.5231508,79.219,79.19,14.47589053]
[1771871791958,1.5231508,79.219,79.176,1.39811637]
[1771871792153,1.5231508,79.238,79.201,1.39811637]
[1771871793761,1.5231508,79.229,79.2,14.47589053]
[1771871794151,1.5231508,79.229,79.201,12.6261032]
[1771871794375,1.5231508,79.239,79.202,1.39811637]
[1771871794670,1.5231508,79.229,79.2,14.47589053]
[1771871796261,1.5231508,79.227,79.2,14.47589053]
[1771871796970,1.5231508,79.227,79.192,1.39811637]
[1771871797172,1.5231508,79.227,79.194,1.39811637]
[1771871797563,1.5231508,79.227,79.19,14.47589053]
[1771871798060,1.5231508,79.219,79.182,1.39811637]
[1771871798266,44.1763013,79.228,79.191,1.39811637]
[1771871798267,45.6994521,79.228,79.191,1.39811637]
[1771871798574,1.5231508,79.227,79.191,1.39811637]
[1771871798960,1.5231508,79.227,79.192,12.62753813]
[1771871799160,1.5231508,79.227,79.19,14.47589053]
[1771871799361,1.5231508,79.219,79.19,14.47589053]
[1771871799563,14.47589053,79.22,79.19,14.47589053]
[1771871799564,1.5231508,79.218,79.191,1.39811637]
[1771871799767,1.5231508,79.227,79.191,1.39811637]
[1771871800375,1.5231508,79.226,79.2,14.47589053]
[1771871800882,1.5231508,79.226,79.2,27.10202626]
[1771871801284,12.62119465,79.232,79.201,1.39811637]